bitfinex/quotes_ETHUSD_20250508
["timestamp","ask_amount","ask_price","bid_price","bid_amount"]
[1746738653785,4.7651207,2176.9,2176.7,0.33651989]
[1746738653994,4.5935501,2177.0,2176.7,3.0]
[1746738654199,0.171155,2176.8,2176.6,5.60998284]
[1746738654488,4.59306472,2177.2,2176.6,10.25023306]
[1746738654691,0.17198722,2177.1,2176.7,3.0]
[1746738654901,4.76525388,2177.1,2176.6,5.60998284]
[1746738655189,4.76534333,2177.1,2176.6,5.60998284]
[1746738655397,0.17198722,2177.1,2176.4,5.469]
[1746738655695,4.59424452,2176.7,2176.3,5.96194164]
[1746738655897,0.8077,2176.9,2176.2,5.60998284]
[1746738656072,0.17060007,2176.6,2176.1,0.7962]
[1746738656269,0.8077,2176.9,2176.1,0.7962]
[1746738656498,0.171155,2176.8,2176.1,0.7962]
[1746738656810,4.5948083,2176.4,2176.1,0.7962]
[1746738657182,0.16976747,2176.3,2176.0,0.04595079]
[1746738657505,4.59421015,2176.7,2176.3,3.0]
[1746738657722,0.8077,2177.6,2176.4,0.811]
[1746738657884,4.59381474,2176.9,2176.5,3.0]
[1746738658079,0.17608892,2176.8,2176.4,8.45162643]
[1746738658302,0.17608892,2176.8,2176.4,3.85694129]
[1746738658494,4.77011918,2176.8,2176.4,3.811]
[1746738658694,4.59386756,2176.9,2176.4,8.40572091]
[1746738658897,4.59386756,2176.9,2176.0,6.16764264]
[1746738658898,0.17581147,2176.7,2176.0,1.15077492]
[1746738659207,0.17581147,2176.7,2176.1,7.59536905]
[1746738659208,4.5944198,2176.6,2176.1,7.59536905]
[1746738659372,0.8077,2177.2,2176.2,8.60998284]
[1746738659572,2.26178595,2179.8,2176.2,8.60998284]
[1746738659573,0.17354707,2176.5,2176.4,8.89704317]
[1746738659776,4.59251643,2177.5,2176.9,4.59353652]
[1746738660084,0.16176074,2177.4,2177.3,3.0]
[1746738660273,4.59222418,2177.6,2177.3,3.0]
[1746738660474,4.59222418,2177.6,2177.1,0.7524]
[1746738660475,4.75455641,2177.5,2177.1,3.7524]
[1746738660715,4.75455641,2177.5,2176.0,0.33977492]
[1746738660716,0.16203811,2177.5,2176.6,0.7705]
[1746738660911,0.16203811,2177.5,2176.6,3.7705]
[1746738660912,4.59263341,2177.4,2176.6,3.7705]
[1746738661098,4.59345211,2177.1,2176.6,3.7705]
[1746738661299,0.98628334,2177.3,2176.6,3.0]
[1746738661532,4.59382835,2176.9,2176.6,3.0]
[1746738661738,4.59259742,2177.5,2176.8,5.60998284]
[1746738661892,4.59242129,2177.6,2177.2,3.0]
[1746738662094,4.59263341,2177.4,2177.3,0.7984]
[1746738662438,4.59263341,2177.4,2176.4,0.55]
[1746738662439,4.59285437,2177.3,2176.9,3.0]
[1746738662798,4.59319807,2177.2,2176.9,3.0]
[1746738663028,4.59222797,2177.6,2176.9,3.0]
[1746738663241,4.59308033,2177.2,2176.9,3.0]
[1746738663548,4.59279404,2177.4,2176.9,3.0]
[1746738663703,0.8109,2178.3,2177.3,0.7899]
[1746738663908,5.40169228,2178.3,2177.5,3.0]
[1746738664109,4.59253165,2177.5,2177.3,0.7899]
[1746738664296,4.59336952,2177.1,2176.8,6.39988284]
[1746738664498,4.59293824,2177.3,2176.9,3.0]
[1746738664703,10.06048833,2178.0,2177.2,3.0]
[1746738664900,4.59210655,2177.7,2177.2,7.59305417]
[1746738665098,5.37847026,2178.1,2177.2,3.0]
[1746738665099,4.59157904,2177.9,2177.2,3.0]
[1746738665301,4.59196532,2177.8,2177.2,7.59296002]
[1746738665634,4.59200711,2177.7,2177.2,7.63888525]
[1746738665835,4.59184795,2177.8,2177.2,3.04592523]
[1746738666033,4.59218218,2177.7,2177.4,3.0]
[1746738666238,4.59136822,2178.0,2177.2,3.0]
[1746738666546,0.7873,2178.1,2177.4,3.0]
[1746738666753,4.59175582,2177.9,2177.4,3.34198654]
[1746738666950,4.59166945,2177.9,2177.4,0.34198654]
[1746738667249,4.59183605,2177.8,2177.3,4.63858353]
[1746738667559,4.59097019,2178.2,2177.8,3.0]
[1746738667560,4.59095383,2178.2,2177.8,3.0]
[1746738667853,4.59104605,2178.2,2177.8,3.0459123]
[1746738668236,4.59124981,2178.1,2177.8,3.0459123]
[1746738668413,4.5910994,2178.2,2177.8,3.0]
[1746738668745,4.59106456,2178.2,2177.8,3.0]
[1746738668926,4.59031443,2178.5,2177.8,3.0]
[1746738669127,4.5904153,2178.5,2178.0,3.0]
[1746738669450,4.5904153,2178.5,2178.0,7.59118573]
[1746738669657,16.543,2178.8,2178.0,3.0]
[1746738669658,4.59065316,2178.4,2178.0,3.0]
[1746738670156,16.543,2178.8,2178.0,3.33850672]
[1746738670362,4.59040649,2178.5,2178.0,1.11860672]
[1746738670653,21.13268528,2178.8,2178.0,4.11860672]
[1746738670828,4.59051326,2178.5,2178.0,4.11860672]
[1746738671034,5.13947175,2178.9,2178.0,1.11860672]
[1746738671214,4.59065087,2178.4,2178.0,1.11860672]
[1746738671416,4.59048047,2178.5,2178.0,5.70997424]
[1746738672123,4.59052991,2178.4,2178.0,1.11860672]
[1746738672455,4.58968769,2178.8,2178.0,1.11860672]
[1746738672456,4.59020683,2178.6,2178.0,5.70990276]
[1746738672656,4.59041376,2178.5,2178.2,3.0]
[1746738673057,4.59041376,2178.5,2178.0,8.70985336]
[1746738673355,4.59044043,2178.5,2178.0,8.709874]
[1746738673530,4.59019599,2178.6,2178.2,3.0]
[1746738673733,4.58674273,2180.2,2179.2,20.56961]
[1746738674064,4.86970635,2180.0,2179.7,3.0]
[1746738674244,0.282524,2180.0,2179.7,3.0]
[1746738674748,0.282524,2180.0,2179.4,7.58834996]
[1746738674951,0.282524,2180.0,2179.9,13.19734923]
[1746738675173,0.7687,2181.1,2180.4,7.58628891]
[1746738675468,0.16140278,2181.0,2180.4,3.0]
[1746738675621,4.74651214,2181.0,2180.4,3.0]
[1746738675824,0.16140278,2181.0,2180.7,3.0]
[1746738676019,4.58505272,2181.0,2180.9,3.0]
[1746738676328,5.37345089,2181.6,2180.8,3.0]
[1746738676533,4.58431284,2181.4,2180.8,10.19543574]
[1746738676732,5.37264725,2182.0,2180.8,0.04584908]
[1746738676932,4.58454268,2181.3,2181.0,3.0]
[1746738677150,4.58337152,2181.8,2181.0,3.0]
[1746738677466,4.584672,2181.2,2181.0,3.0]
[1746738677621,4.58453673,2181.3,2181.0,3.0]
[1746738677817,4.58457874,2181.3,2181.0,3.0]
[1746738678022,4.58462465,2181.3,2181.0,3.0]
[1746738678222,4.58461942,2181.3,2181.0,3.34874111]
[1746738678464,0.55,2181.8,2180.6,0.8093]
[1746738678669,4.58502196,2181.1,2180.7,3.0]
[1746738678970,4.58358161,2181.7,2180.6,6.59797096]
[1746738678971,4.58466224,2181.2,2180.6,0.8093]
[1746738679187,4.58526296,2180.9,2180.2,3.8093]
[1746738679486,4.58526296,2180.9,2180.1,5.60998284]
[1746738679487,4.58662674,2180.3,2180.1,0.34185443]
[1746738679687,4.58706318,2180.1,2179.9,5.419]
[1746738679897,4.58715596,2180.0,2179.9,5.419]
[1746738680096,4.58736639,2179.9,2179.8,0.8093]
[1746738680395,4.58799779,2179.6,2179.5,8.50492499]
[1746738680597,4.58799779,2179.6,2179.5,2.89494215]
[1746738680750,5.13799779,2179.6,2179.5,2.89494215]
[1746738680945,4.58799779,2179.6,2179.5,2.89494215]
[1746738681200,5.13799779,2179.6,2179.5,2.89494215]
[1746738681561,4.58981924,2178.8,2178.4,5.60998284]
[1746738681875,4.59031443,2178.5,2178.4,3.0]
[1746738682286,4.59031443,2178.5,2178.1,5.96019881]
[1746738682462,4.59094665,2178.2,2178.1,0.35021597]
[1746738682795,4.59080766,2178.3,2177.9,8.55083469]
[1746738682960,4.59063838,2178.4,2177.9,8.45682083]
[1746738683150,4.59063838,2178.4,2177.9,3.86524199]
[1746738683352,4.59063838,2178.4,2178.0,5.60998284]
[1746738684291,4.59063838,2178.4,2178.1,3.0]
[1746738684593,0.55,2179.0,2178.1,3.0]
[1746738684775,4.59032558,2178.5,2178.1,3.98826265]
[1746738685091,1.3815,2179.2,2178.3,8.60998284]
[1746738685253,4.59033817,2178.5,2178.3,8.60998284]
[1746738685455,4.58915843,2179.1,2178.1,3.98826265]
[1746738685456,4.58947175,2178.9,2178.1,3.98826265]
[1746738685677,4.59050692,2178.5,2178.1,3.98826265]
[1746738685878,4.58926112,2179.0,2178.2,0.95982455]
[1746738686049,4.58905052,2179.1,2178.4,3.0]
[1746738686246,4.58963347,2178.9,2178.5,0.7777]
[1746738686696,4.58883994,2179.2,2178.5,0.7777]
[1746738686996,4.58905052,2179.1,2178.5,0.7777]
[1746738687146,4.58905052,2179.1,2178.4,3.0]
[1746738687147,4.58999302,2178.7,2178.4,3.0]
[1746738687354,4.59019975,2178.6,2178.4,3.0]
[1746738687589,4.59031443,2178.5,2178.4,3.0]
[1746738688249,4.59031443,2178.5,2178.1,9.38768284]
[1746738688453,4.58996653,2178.7,2178.1,9.38768284]
[1746738688679,4.72310779,2178.6,2178.1,13.97864666]
[1746738688881,0.13300333,2178.6,2178.1,9.38768284]
[1746738689064,4.59157904,2177.9,2177.8,5.60998284]
[1746738689262,0.13086961,2177.9,2177.8,5.60998284]
[1746738689468,4.59116766,2178.1,2177.9,3.0]
[1746738689694,0.13078531,2178.0,2177.9,3.0]
[1746738689899,4.59116766,2178.1,2177.9,3.0]
[1746738690081,0.13084432,2178.0,2177.9,3.0]
[1746738690279,4.5912097,2178.1,2177.9,3.0]
[1746738690479,4.59101856,2178.2,2177.9,3.0]
[1746738690480,0.13090332,2178.0,2177.9,3.0]
[1746738690756,0.55,2178.5,2177.5,5.60998284]
[1746738691087,4.5902183,2178.6,2177.5,5.60998284]
[1746738691302,4.59189964,2177.8,2177.5,5.60998284]
[1746738691622,5.27196133,2178.5,2177.5,5.60998284]
[1746738691623,4.72143299,2177.7,2177.6,3.0]
[1746738691897,0.12938505,2177.7,2177.6,3.0]
[1746738692196,4.59188348,2177.8,2177.6,3.0]
[1746738692402,4.72156283,2177.7,2177.6,3.0]
[1746738692699,0.1295621,2177.7,2177.3,5.34333633]
[1746738692996,0.7719,2178.6,2177.6,3.0]
[1746738693165,4.59058752,2178.4,2177.9,4.59145065]
[1746738693372,4.59074756,2178.3,2177.8,10.20169858]
[1746738693781,4.59150605,2178.0,2177.8,5.60998284]
[1746738693981,4.59216777,2177.7,2177.3,0.7505]
[1746738694161,4.5918957,2177.8,2177.3,10.99924013]
[1746738694356,4.59073589,2178.3,2177.4,3.0]
[1746738694578,4.59217161,2177.7,2177.4,19.15]
[1746738694776,4.59217161,2177.7,2177.4,3.0]
[1746738695176,4.59221235,2177.6,2177.4,3.0]
[1746738695580,4.5913764,2178.0,2177.4,3.0]
[1746738695776,4.59219274,2177.7,2177.4,3.0]
[1746738695998,4.59031443,2178.5,2177.7,3.0]
[1746738696198,4.59104751,2178.2,2177.9,5.60998284]
[1746738696402,5.36201745,2178.6,2177.9,5.60998284]
[1746738696613,4.59084694,2178.3,2177.9,5.60998284]
[1746738696902,4.59107161,2178.2,2177.9,5.60998284]
[1746738697075,4.59093191,2178.3,2178.0,3.0]
[1746738697274,4.59115743,2178.1,2178.0,3.0]
[1746738697665,4.59104813,2178.2,2178.0,3.0]
[1746738697876,4.5909145,2178.3,2178.0,3.0]
[1746738698074,4.59115743,2178.1,2178.0,3.0]
[1746738698515,4.59136822,2178.0,2177.9,16.15]
[1746738698698,4.59136822,2178.0,2177.9,6.11]
[1746738698883,4.59200073,2177.7,2177.6,5.60998284]
[1746738699295,4.59200073,2177.7,2177.6,8.60998284]
[1746738699918,4.59187227,2177.8,2177.6,8.60998284]
[1746738700089,4.59200073,2177.7,2177.6,8.60998284]
[1746738700287,0.61225203,2209.9,2177.6,8.60998284]
[1746738700288,0.55,2178.5,2177.7,3.0]
[1746738700488,4.59115743,2178.1,2178.0,5.60998284]
[1746738700685,4.59115743,2178.1,2177.3,0.7505]
[1746738700686,4.59207742,2177.7,2177.6,5.60998284]
[1746738700913,4.69496323,2177.7,2177.6,8.60998284]
[1746738701499,4.69488654,2177.7,2177.6,8.60998284]
[1746738702712,4.69488654,2177.7,2177.2,0.34036604]
[1746738702713,4.59284434,2177.3,2177.2,0.34036604]
[1746738702928,4.59284434,2177.3,2177.1,5.60998284]
[1746738702929,4.5930553,2177.2,2177.1,5.60998284]
[1746738703429,4.69383042,2177.2,2177.1,5.60998284]
[1746738703626,4.69383042,2177.2,2176.4,16.15]
[1746738703627,4.59368827,2176.9,2176.8,5.60998284]
[1746738703797,4.59368827,2176.9,2176.8,8.60998284]
[1746738703996,4.69314603,2176.9,2176.8,8.60998284]
[1746738704196,4.69314603,2176.9,2176.8,5.94818679]
[1746738704390,4.69314603,2176.9,2176.8,8.94818679]
[1746738705323,0.09945776,2176.9,2176.8,5.94818679]
[1746738705533,0.8262,2177.8,2176.9,3.0]
[1746738705689,10.01318175,2178.1,2177.7,3.0]
[1746738705890,4.59134532,2178.1,2177.9,5.60998284]
[1746738706092,4.59103991,2178.2,2177.9,5.60998284]
[1746738706291,4.5904849,2178.5,2178.0,7.59128579]
[1746738706647,4.59062136,2178.4,2178.2,5.60998284]
[1746738707026,4.59073589,2178.3,2178.2,5.60998284]
[1746738707321,4.59041889,2178.5,2178.2,5.60998284]
[1746738707515,4.59041889,2178.5,2178.3,3.0]
[1746738707886,4.59073589,2178.3,2178.2,5.60998284]
[1746738708092,4.59073589,2178.3,2178.2,8.60998284]
[1746738708331,5.422,2178.7,2178.3,3.0]
[1746738708498,5.422,2178.7,2178.5,5.60998284]
[1746738708829,4.58978761,2178.8,2178.5,5.60998284]
[1746738709037,4.5899035,2178.7,2178.5,5.60998284]
[1746738709893,4.58962714,2178.9,2178.5,5.94681713]
[1746738710238,4.58933191,2179.0,2178.6,3.0]
[1746738710673,4.5882083,2179.5,2178.9,7.5894678]
[1746738710810,0.7888,2180.0,2179.5,3.0]
[1746738711151,4.67437764,2179.9,2179.0,3.0]
[1746738711353,4.67437764,2179.9,2178.8,3.7503]
[1746738711354,4.58917943,2179.1,2178.8,3.7503]
[1746738711570,4.58902339,2179.2,2178.8,3.7503]
[1746738711743,4.58947175,2178.9,2178.8,3.0]
[1746738712255,0.08603488,2178.9,2178.8,3.0]
[1746738712414,4.67550663,2178.9,2178.7,5.60998284]
[1746738712747,4.67550663,2178.9,2178.7,8.60998284]
[1746738713045,4.67550721,2178.9,2178.7,8.60998284]
[1746738713227,4.58968239,2178.8,2178.7,3.0]
[1746738713627,4.67541422,2178.8,2178.7,3.0]
[1746738713843,4.58968239,2178.8,2178.7,3.0]
[1746738714019,4.58999842,2178.7,2178.5,3.52291524]
[1746738714219,4.59010373,2178.6,2178.5,3.33683429]
[1746738715146,0.55,2179.2,2178.5,3.33683429]
[1746738715347,4.58968145,2178.9,2178.7,5.60998284]
[1746738715549,0.7888,2179.3,2178.7,5.60998284]
[1746738715550,0.7888,2179.3,2178.8,3.0]
[1746738715849,4.58931122,2179.0,2178.8,3.0]
[1746738716051,4.58931122,2179.0,2178.8,9.11]
[1746738716344,4.58912872,2179.1,2178.8,9.11]
[1746738716553,4.58927376,2179.0,2178.8,3.0]
[1746738717043,4.58917423,2179.1,2178.8,3.0]
[1746738717247,4.58895816,2179.2,2178.8,3.0]
[1746738717445,4.58947175,2178.9,2178.8,3.0]
[1746738717815,0.55,2179.4,2178.8,3.0]
[1746738718043,5.13843903,2179.4,2178.8,3.0]
[1746738718231,4.58902884,2179.2,2178.8,3.0]
[1746738718539,4.58936972,2179.0,2178.8,3.0]
[1746738719351,4.58968239,2178.8,2178.6,6.11]
[1746738719648,4.58989305,2178.7,2178.6,6.11]
[1746738720051,4.59010373,2178.6,2178.5,0.33683429]
[1746738720237,4.59009197,2178.7,2178.4,3.0]
[1746738720650,4.59011789,2178.6,2178.4,3.0]
[1746738720828,4.59031443,2178.5,2178.2,0.93976278]
[1746738721153,4.5899502,2178.7,2178.2,5.53068001]
[1746738721357,4.5899502,2178.7,2178.3,3.0]
[1746738721543,4.59012024,2178.6,2178.3,3.0]
[1746738722121,4.5901303,2178.6,2178.3,3.0]
[1746738722871,0.8316,2179.2,2178.4,5.60998284]
[1746738723158,4.59007103,2178.7,2178.5,24.75998284]
[1746738723458,4.59007103,2178.7,2178.5,8.60998284]
[1746738723459,4.58989669,2178.7,2178.5,8.60998284]
[1746738723756,4.58956853,2178.9,2178.5,8.60998284]
[1746738724062,4.58893264,2179.2,2178.8,5.60998284]
[1746738724257,4.5882083,2179.5,2178.8,5.60998284]
[1746738724464,0.8316,2180.0,2179.3,3.0]
[1746738724757,0.08561473,2180.0,2179.6,3.0]
[1746738724956,0.08561473,2180.0,2179.6,9.1627]
[1746738725156,4.58778731,2179.7,2179.6,3.34980443]
[1746738726061,4.58778731,2179.7,2179.2,3.0]
[1746738726265,4.58947175,2178.9,2178.8,5.60998284]
[1746738726743,0.8316,2179.6,2178.9,3.0]
[1746738726931,4.58898419,2179.2,2178.8,5.60998284]
[1746738727263,3.0,2179.4,2178.6,0.8287]
[1746738727466,4.59031443,2178.5,2178.3,5.60998284]
[1746738727630,4.59050278,2178.5,2178.2,5.79944562]
[1746738727939,0.55,2179.2,2178.3,3.0]
[1746738728126,4.59055201,2178.4,2178.2,5.95975284]
[1746738728332,4.59037594,2178.5,2178.3,3.0]
[1746738728561,4.58947175,2178.9,2178.3,3.0]
[1746738728855,4.58998495,2178.7,2178.2,10.55055058]
[1746738729056,0.55,2178.9,2178.2,5.95975284]
[1746738729271,4.59048235,2178.5,2178.3,3.0]
[1746738729861,4.58890929,2179.2,2178.2,5.95975284]
[1746738729862,0.55,2179.1,2178.2,5.95975284]
[1746738730068,4.58947175,2178.9,2178.3,3.0]
[1746738730358,4.59052515,2178.4,2178.3,3.0]
[1746738730962,4.59052515,2178.4,2178.2,5.95975284]
[1746738730963,4.5922116,2177.6,2177.5,2.89494215]
[1746738731266,5.1422116,2177.6,2177.5,2.89494215]
[1746738733028,4.5921527,2177.7,2177.5,2.89494215]
[1746738733238,4.59073589,2178.3,2177.5,2.89494215]
[1746738733466,6.1599,2178.4,2177.5,2.89494215]
[1746738733467,4.5922116,2177.6,2177.5,2.89494215]
[1746738733646,4.59263341,2177.4,2177.3,3.0]
[1746738734282,4.59326627,2177.1,2176.5,5.60998284]
[1746738734568,4.59347726,2177.0,2176.6,3.0]
[1746738734726,4.59277525,2177.4,2176.9,3.7708]
[1746738735065,4.5922116,2177.6,2177.2,3.0]
[1746738735252,0.7795,2177.8,2177.0,5.60998284]
[1746738735453,4.59301017,2177.3,2177.0,8.60998284]
[1746738735653,4.59323465,2177.2,2177.0,5.60998284]
[1746738735875,0.55,2177.2,2176.2,0.7708]
[1746738736172,4.59455814,2176.5,2176.3,5.60998284]
[1746738736329,4.59455814,2176.5,2176.4,3.0]
[1746738736730,4.5943595,2176.6,2176.4,3.0]
[1746738737133,4.59432141,2176.6,2176.4,3.0]
[1746738737383,4.59411967,2176.7,2176.4,3.0]
[1746738737384,4.59413627,2176.7,2176.4,3.0]
[1746738737687,0.7795,2177.1,2176.4,3.0]
[1746738737886,0.7795,2177.1,2176.2,0.7708]
[1746738737887,4.59422708,2176.7,2176.2,6.38078284]
[1746738738093,0.7795,2177.1,2176.3,3.0459485]
[1746738738384,4.59366282,2177.0,2176.6,3.0]
[1746738738546,4.59381033,2176.9,2176.6,3.0]
[1746738738735,4.59384248,2176.9,2176.6,3.0]
[1746738739367,4.59338028,2177.1,2176.6,7.5943108]
[1746738739674,1.3295,2177.5,2176.9,3.0]
[1746738739675,0.7795,2177.5,2176.9,3.0]
[1746738739841,0.816,2177.8,2177.2,3.0]
[1746738740035,5.367,2177.9,2177.3,4.59278265]
[1746738740232,0.816,2178.2,2177.7,5.60998284]
[1746738740472,4.59157904,2177.9,2177.8,3.0]
[1746738740781,4.59148764,2178.0,2177.8,3.0]
[1746738740980,0.816,2178.6,2177.5,3.0]
[1746738740981,4.5922116,2177.6,2177.5,3.0]
[1746738741186,0.55,2177.6,2176.7,4.59410362]
[1746738741353,4.59313951,2177.2,2177.0,3.0]
[1746738741553,0.7748,2177.7,2177.0,3.0]
[1746738741554,4.59287046,2177.3,2177.0,3.0]
[1746738741774,4.59228318,2177.6,2177.0,3.0]
[1746738741956,4.59221199,2177.6,2177.2,3.0]
[1746738742285,4.59231893,2177.6,2177.2,8.60998284]
[1746738742483,4.59231942,2177.6,2177.2,9.4755742]
[1746738742692,4.59168125,2177.9,2177.4,3.0]
[1746738742855,4.59118683,2178.1,2177.6,3.0]
[1746738743058,4.59086191,2178.3,2177.9,3.0]
[1746738743249,4.59103823,2178.2,2177.9,3.0]
[1746738743449,0.7748,2178.5,2177.9,3.0]
[1746738743450,0.7748,2178.9,2178.1,8.60998284]
[1746738743649,0.7748,2178.9,2178.0,5.4089248]
[1746738743650,4.59094665,2178.2,2178.0,3.8177]
[1746738743893,4.59043331,2178.5,2178.0,3.8177]
[1746738744057,4.59040635,2178.5,2178.0,8.40894147]
[1746738744387,0.55,2178.6,2177.8,3.0]
[1746738744544,4.59139154,2178.0,2177.8,3.0]
[1746738744747,4.59065836,2178.4,2178.0,3.0]
[1746738745085,4.58989305,2178.7,2178.0,3.0]
[1746738745285,4.59075486,2178.3,2178.0,3.0]
[1746738745593,4.59099893,2178.2,2177.9,0.35196092]
[1746738745881,4.59099893,2178.2,2177.2,0.86559136]
[1746738745882,4.59230951,2177.6,2177.3,3.7607]
[1746738746251,5.14094665,2178.2,2177.3,0.7607]
[1746738746252,4.59249647,2177.5,2177.3,0.7607]
[1746738746448,4.59263341,2177.4,2177.3,4.10099231]
[1746738746698,4.59305015,2177.3,2177.0,5.60998284]
[1746738746985,4.59326251,2177.2,2177.0,5.60998284]
[1746738747488,4.5938993,2176.8,2176.7,2.89494215]
[1746738747657,0.55,2177.4,2176.7,2.89494215]
[1746738748006,0.55,2177.3,2176.4,0.7606]
[1746738748204,4.59349918,2177.0,2176.5,10.25035318]
[1746738748366,4.59336157,2177.1,2176.6,4.59431412]
[1746738748562,4.59336157,2177.1,2176.6,0.34466607]
[1746738748777,0.7726,2177.5,2176.5,7.1705448]
[1746738749119,4.59386601,2176.9,2176.6,3.0]
[1746738749413,4.59441177,2176.6,2176.4,0.7606]
[1746738749877,0.55,2177.4,2176.4,0.7606]
[1746738750083,4.59385333,2176.9,2176.4,0.7606]
[1746738750305,4.59390248,2176.8,2176.4,0.7606]
[1746738750504,4.59387562,2176.9,2176.4,0.7606]
[1746738750669,4.59391012,2176.8,2176.4,0.7606]
[1746738750865,0.55,2177.4,2176.5,8.60998284]
[1746738751092,4.59432141,2176.6,2176.4,4.10729797]
[1746738751278,4.5945325,2176.5,2176.4,0.34669797]
[1746738751478,4.59485053,2176.4,2176.1,0.804]
[1746738751724,4.59411035,2176.7,2176.1,11.0551186]
[1746738751900,0.55,2176.8,2176.0,3.19091659]
[1746738752206,5.14432141,2176.6,2175.4,2.89494215]
[1746738752393,10.42544631,2176.6,2175.6,3.0]
[1746738752597,4.59580175,2175.9,2175.5,5.60998284]
[1746738752794,4.59527115,2176.2,2175.8,5.60998284]
[1746738753003,4.59528309,2176.2,2175.9,3.0]
[1746738753208,4.5953967,2176.1,2175.9,3.0]
[1746738753409,4.59546083,2176.1,2175.8,5.9535813]
[1746738753614,4.59539548,2176.1,2175.8,5.9535813]
[1746738754176,4.59508894,2176.3,2175.5,0.18844702]
[1746738754177,4.59578552,2176.0,2175.5,0.18844702]
[1746738754477,4.59571018,2176.0,2175.6,3.0]
[1746738754793,4.59578327,2176.0,2175.6,3.0]
[1746738754991,4.59601383,2175.8,2175.5,5.80454575]
[1746738755209,4.59664444,2175.5,2175.4,1.1483735]
[1746738755409,4.59664444,2175.5,2175.4,0.3443735]
[1746738755612,4.59596454,2175.9,2175.3,0.23982636]
[1746738755613,4.59647112,2175.6,2175.3,3.43661789]
[1746738755916,4.59675186,2175.5,2175.3,0.43661789]
[1746738756091,4.59685575,2175.4,2175.3,0.23982636]
[1746738757084,5.14685575,2175.4,2175.3,0.23982636]
[1746738757419,0.55,2175.4,2175.0,0.33630709]
[1746738757595,4.59748977,2175.1,2174.7,6.37628284]
[1746738757797,4.59716573,2175.3,2174.8,4.59792581]
[1746738758116,4.59717314,2175.3,2174.8,7.59804317]
[1746738758287,0.8098,2175.5,2175.1,3.0]
[1746738758489,4.59676664,2175.5,2175.1,3.0]
[1746738758809,4.59727841,2175.2,2175.1,3.0]
[1746738758977,4.59716453,2175.3,2175.1,3.0]
[1746738759178,4.59727841,2175.2,2175.1,3.0]
[1746738759628,4.59695772,2175.4,2175.1,3.0]
[1746738759777,4.59716232,2175.3,2175.1,3.0]
[1746738759979,0.8032,2175.2,2174.2,0.8289]
[1746738760178,4.59821348,2174.8,2174.5,3.0]
[1746738760419,0.8032,2175.2,2174.7,5.60998284]
[1746738760581,4.59783336,2175.0,2174.8,3.0]
[1746738760901,4.59761188,2175.1,2174.7,5.60998284]
[1746738761100,4.59770834,2175.0,2174.8,3.0]
[1746738761277,4.59770834,2175.0,2174.8,3.18947165]
[1746738761480,4.59705318,2175.4,2175.0,3.0]
[1746738761782,4.59692517,2175.4,2175.0,8.60998284]
[1746738762090,4.59681578,2175.5,2175.0,13.20756126]
[1746738762293,4.59667728,2175.5,2175.1,4.59747257]
[1746738762514,17.3462,2176.0,2175.4,3.0]
[1746738762717,4.59609967,2175.8,2175.4,3.0]
[1746738762882,17.3462,2176.0,2175.4,3.0]
[1746738763094,4.59579943,2175.9,2175.4,3.0]
[1746738763293,4.59725568,2175.3,2175.1,5.60998284]
[1746738763537,4.59763443,2175.1,2174.9,3.0]
[1746738763838,4.5983354,2174.7,2174.5,6.0909]
[1746738764132,4.59854685,2174.6,2174.5,5.262]
[1746738764327,4.59729212,2175.2,2174.5,3.0]
[1746738764328,4.59820707,2174.8,2174.5,3.0]
[1746738764624,4.59854685,2174.6,2174.5,5.60998284]
[1746738764827,4.59894478,2174.5,2174.4,0.190685]
[1746738765027,4.59875833,2174.5,2174.2,5.94708278]
[1746738765192,4.59875833,2174.5,2174.3,3.0]
[1746738765387,4.59903255,2174.4,2174.2,5.94708278]
[1746738765636,4.59869049,2174.6,2174.3,3.0]
[1746738765997,4.59930222,2174.3,2174.1,0.19414501]
[1746738766200,4.59935808,2174.3,2174.1,3.0]
[1746738766531,4.59925371,2174.3,2174.0,5.60998284]
[1746738766772,4.59958012,2174.2,2174.1,3.0]
[1746738766931,4.59925371,2174.3,2174.0,5.60998284]
[1746738766932,4.59930167,2174.3,2174.0,5.60998284]
[1746738767132,4.59835196,2174.7,2174.2,4.59930226]
[1746738767335,4.59855037,2174.6,2174.4,3.0]
[1746738767706,4.59814136,2174.8,2174.4,3.0]
[1746738767903,4.59814136,2174.8,2174.4,3.823]
[1746738767904,4.59834434,2174.7,2174.4,3.823]
[1746738768235,0.7925,2175.0,2174.4,3.823]
[1746738768393,4.59802945,2174.9,2174.4,3.823]
[1746738768598,0.8258,2175.3,2174.7,3.0]
[1746738768794,4.59759977,2175.1,2175.0,3.0]
[1746738769190,4.5982713,2174.8,2174.4,2.22621505]
[1746738769406,4.59767688,2175.1,2174.6,3.0]
[1746738769623,4.59770114,2175.0,2174.9,3.0]
[1746738770126,4.59756685,2175.1,2174.9,3.0]
[1746738770318,0.8258,2175.5,2174.9,3.0]
[1746738770534,4.59759689,2175.1,2174.9,3.0]
[1746738770738,4.59784422,2175.0,2174.8,3.0]
[1746738770931,4.59791254,2174.9,2174.8,3.0]
[1746738771113,0.55,2175.4,2174.8,3.0]
[1746738771441,4.59791254,2174.9,2174.8,3.0]
[1746738771613,4.59763256,2175.1,2174.8,3.0]
[1746738771949,4.59754612,2175.1,2174.8,3.0]
[1746738772155,4.59791254,2174.9,2174.8,3.0]
[1746738772448,0.55,2175.4,2174.8,3.0]
[1746738772609,4.59750036,2175.1,2174.8,3.0]
[1746738772808,4.5977135,2175.0,2174.8,3.0]
[1746738773251,4.59791254,2174.9,2174.8,3.0]
[1746738774024,4.5983354,2174.7,2174.5,3.0]
[1746738774423,4.59845529,2174.7,2174.5,3.0]
[1746738774643,4.59780412,2175.0,2174.5,7.59856662]
[1746738774839,4.59771942,2175.0,2174.8,3.0]
[1746738775211,4.59791254,2174.9,2174.8,3.0]
[1746738775410,4.59844162,2174.7,2174.5,3.0]
[1746738775738,4.5980392,2174.9,2174.5,3.0]
[1746738775936,4.59706707,2175.3,2174.8,3.0]
[1746738776112,4.59781352,2175.0,2174.8,3.0]
[1746738776722,9.19571458,2175.0,2174.8,3.0]
[1746738776914,4.59791254,2174.9,2174.8,3.0]